fUST/lending_fUST_20250502
["ID","MTS","AMOUNT","RATE_DAILY","PERIOD"]
[359601574,1746177050024,-400.0,0.00019178,2]
[359601575,1746177050033,-246.69680059,0.00019178,2]
[359601592,1746177108093,4768.15430977,0.00018,2]
[359601593,1746177109199,-200.82209684,0.00018051,2]
[359601594,1746177113873,5000.0,0.00016007,2]
[359601595,1746177184236,-151.0,0.00018051,2]
[359601596,1746177189130,-23.89412484,0.00018051,2]
[359601598,1746177246822,324.47566652,0.00017951,2]
[359601646,1746177929247,-207.38719697,0.00018047,2]
[359601674,1746178115787,915.01328586,0.00023,60]
[359601676,1746178118216,1031.0977486,0.00025,30]
[359601680,1746178124493,300.0,0.00025,30]
[359601708,1746178232074,-10.73477403,0.00018047,2]
[359601709,1746178232085,-151.0,0.00018585,2]
[359601710,1746178232096,-207.4,0.00018585,2]
[359601711,1746178232106,-200.82209684,0.000188,2]
[359601712,1746178232116,-150.0,0.000189,2]
[359601713,1746178232126,-300.0,0.00018912,2]
[359601714,1746178232136,-465.0,0.00018912,2]
[359601715,1746178232146,-707.0,0.00018913,2]
[359601716,1746178232156,-2244.0,0.00018913,2]
[359601717,1746178232165,-485.306,0.00018913,2]
[359601718,1746178232174,-2200.0,0.00018972,2]
[359601719,1746178232184,-2177.2931321,0.00018986,2]
[359601721,1746178232194,-500.0,0.00019072,2]
[359601723,1746178232204,-500.0,0.00019072,2]
[359601724,1746178232214,-402.52259423,0.00019072,2]
[359601725,1746178232224,-901.91846444,0.00019078,2]
[359601726,1746178232234,-1119.38,0.00019168,3]
[359601727,1746178232243,-559.69,0.00019168,3]
[359601729,1746178232252,-279.84,0.00019168,3]
[359601731,1746178232262,-839.55,0.00019168,3]
[359601733,1746178232271,-451.45523808,0.00019177,2]
[359601734,1746178232281,-400.0,0.00019178,2]
[359601735,1746178232290,-402.90624306,0.00019178,2]
[359601736,1746178232301,-400.0,0.00019178,2]
[359601737,1746178232311,-323.07710644,0.00019178,2]
[359601738,1746178232321,-156.071238,0.00019178,2]
[359601739,1746178232331,-400.0,0.00019178,2]
[359601740,1746178232342,-432.3913526,0.00019178,2]
[359601741,1746178232351,-219.12013027,0.00019178,2]
[359601742,1746178232362,-400.0,0.00019178,2]
[359601743,1746178232371,-403.08636555,0.00019178,2]
[359601744,1746178232380,-400.0,0.00019178,2]
[359601745,1746178232390,-400.0,0.00019178,2]
[359601746,1746178232400,-400.0,0.00019178,2]
[359601747,1746178232409,-400.0,0.00019178,2]
[359601748,1746178232420,-189.84580965,0.00019178,2]
[359601749,1746178232430,-400.0,0.00019178,2]
[359601750,1746178232441,-400.0,0.00019178,2]
[359601751,1746178232451,-400.0,0.00019178,2]
[359601752,1746178232463,-1018.068513,0.00019178,2]
[359601753,1746178232473,-540.133429,0.00019178,2]
[359601754,1746178232484,-400.0,0.00019178,2]
[359601755,1746178232493,-400.0,0.00019178,2]
[359601756,1746178232502,-404.71159141,0.00019178,2]
[359601757,1746178232512,-506.73361814,0.00019178,2]
[359601758,1746178232521,-400.0,0.00019178,2]
[359601759,1746178232531,-402.86025825,0.00019178,2]
[359601760,1746178232541,-400.0,0.00019178,2]
[359601761,1746178232551,-400.0,0.00019178,2]
[359601762,1746178232560,-400.0,0.00019178,2]
[359601763,1746178232570,-400.0,0.00019178,2]
[359601764,1746178232579,-509.47733899,0.00019178,2]
[359601765,1746178232589,-400.0,0.00019178,2]
[359601766,1746178232598,-400.0,0.00019178,2]
[359601767,1746178232607,-415.16043103,0.00019178,2]
[359601768,1746178232616,-400.0,0.00019178,2]
[359601769,1746178232626,-400.0,0.00019178,2]
[359601770,1746178232635,-400.0,0.00019178,2]
[359601771,1746178232645,-408.0651324,0.00019178,2]
[359601772,1746178232654,-400.0,0.00019178,2]
[359601773,1746178232664,-400.0,0.00019178,2]
[359601774,1746178232674,-400.0,0.00019178,2]
[359601775,1746178232683,-400.0,0.00019178,2]
[359601776,1746178232693,-457.53076727,0.00019178,2]
[359601777,1746178232703,-400.0,0.00019178,2]
[359601778,1746178232712,-400.0,0.00019178,2]
[359601779,1746178232722,-400.0,0.00019178,2]
[359601780,1746178232732,-400.0,0.00019178,2]
[359601781,1746178232742,-411.2558902,0.00019178,2]
[359601782,1746178232751,-400.0,0.00019178,2]
[359601783,1746178232761,-400.0,0.00019178,2]
[359601784,1746178232771,-971.62,0.00019178,2]
[359601785,1746178232783,-400.0,0.00019178,2]
[359601786,1746178232793,-400.0,0.00019178,2]
[359601787,1746178232805,-400.0,0.00019178,2]
[359601788,1746178232814,-400.0,0.00019178,2]
[359601789,1746178232824,-400.0,0.00019178,2]
[359601790,1746178232834,-400.0,0.00019178,2]
[359601791,1746178232843,-400.0,0.00019178,2]
[359601792,1746178232852,-400.0,0.00019178,2]
[359601793,1746178232862,-400.0,0.00019178,2]
[359601794,1746178232872,-400.0,0.00019178,2]
[359601795,1746178232881,-245.18592183,0.00019178,2]
[359601796,1746178232891,-400.0,0.00019178,2]
[359601797,1746178232900,-687.56,0.00019178,2]
[359601798,1746178232910,-400.0,0.00019178,2]
[359601799,1746178232919,-400.0,0.00019178,2]
[359601800,1746178232929,-400.0,0.00019178,2]
[359601801,1746178232939,-400.0,0.00019178,2]
[359601802,1746178232949,-400.0,0.00019178,2]
[359601803,1746178232958,-400.0,0.00019178,2]
[359601804,1746178232968,-203.17499696,0.00019178,2]
[359601805,1746178232978,-400.0,0.00019178,2]
[359601806,1746178232987,-400.0,0.00019178,2]
[359601807,1746178232996,-400.0,0.00019178,2]
[359601808,1746178233011,-1000.0,0.00019178,2]
[359601809,1746178233021,-336.55092428,0.00019178,2]
[359601810,1746178233031,-230.19977296,0.00019178,2]
[359601844,1746178238042,-545.0,0.00018913,2]
[359601846,1746178238051,-169.80022704,0.00019178,2]
[359601848,1746178238063,-400.0,0.00019178,2]
[359601850,1746178238073,-400.0,0.00019178,2]
[359601852,1746178238083,-400.0,0.00019178,2]
[359601854,1746178238094,-186.31161861,0.00019178,2]
[359601856,1746178238108,-213.68838139,0.00019178,2]
[359601858,1746178238118,-400.0,0.00019178,2]
[359601860,1746178238128,-400.0,0.00019178,2]
[359601862,1746178238138,-400.0,0.00019178,2]
[359601864,1746178238150,-400.0,0.00019178,2]
[359601867,1746178238160,-400.0,0.00019178,2]
[359601869,1746178238171,-400.0,0.00019178,2]
[359601871,1746178238181,-400.0,0.00019178,2]
[359601873,1746178238190,-400.0,0.00019178,2]
[359601875,1746178238200,-400.0,0.00019178,2]
[359601877,1746178238210,-400.0,0.00019178,2]
[359601880,1746178238220,-400.0,0.00019178,2]
[359601882,1746178238230,-400.0,0.00019178,2]
[359601884,1746178238240,-400.0,0.00019178,2]
[359601886,1746178238249,-402.9998758,0.00019178,2]
[359601888,1746178238259,-400.0,0.00019178,2]
[359601890,1746178238269,-400.0,0.00019178,2]
[359601892,1746178238278,-400.0,0.00019178,2]
[359601894,1746178238288,-374.06589707,0.00019178,2]
[359601896,1746178238300,-25.93410293,0.00019178,2]
[359601898,1746178238311,-400.0,0.00019178,2]
[359601900,1746178238320,-400.0,0.00019178,2]
[359601903,1746178238330,-400.0,0.00019178,2]
[359601905,1746178238339,-424.56520472,0.00019178,2]
[359601907,1746178238349,-400.0,0.00019178,2]
[359601909,1746178238359,-512.09463936,0.00019178,2]
[359601911,1746178238369,-400.0,0.00019178,2]
[359601913,1746178238378,-400.0,0.00019178,2]
[359601915,1746178238387,-400.0,0.00019178,2]
[359601917,1746178238397,-400.0,0.00019178,2]
[359601919,1746178238407,-400.0,0.00019178,2]
[359601921,1746178238416,-400.0,0.00019178,2]
[359601923,1746178238425,-400.0,0.00019178,2]
[359601925,1746178238434,-400.0,0.00019178,2]
[359601927,1746178238444,-401.60557107,0.00019178,2]
[359601929,1746178238454,-489.4,0.00019178,2]
[359601931,1746178238463,-400.0,0.00019178,2]
[359601933,1746178238473,-500.0,0.00019178,2]
[359601935,1746178238482,-400.0,0.00019178,2]
[359601937,1746178238492,-400.0,0.00019178,2]
[359601939,1746178238502,-400.0,0.00019178,2]
[359601941,1746178238511,-400.0,0.00019178,2]
[359601943,1746178238521,-400.0,0.00019178,2]
[359601945,1746178238530,-400.0,0.00019178,2]
[359601947,1746178238539,-400.0,0.00019178,2]
[359601949,1746178238548,-400.0,0.00019178,2]
[359601951,1746178238558,-400.0,0.00019178,2]
[359601953,1746178238567,-434.65,0.00019178,2]
[359601955,1746178238577,-400.0,0.00019178,2]
[359601957,1746178238586,-400.0,0.00019178,2]
[359601959,1746178238595,-525.64424441,0.00019178,2]
[359601961,1746178238604,-400.0,0.00019178,2]
[359601963,1746178238614,-400.0,0.00019178,2]
[359601965,1746178238623,-400.0,0.00019178,2]
[359601967,1746178238632,-400.0,0.00019178,2]
[359601969,1746178238641,-400.0,0.00019178,2]
[359601971,1746178238651,-401.49463789,0.00019178,2]
[359601973,1746178238660,-206.31018895,0.00019178,2]
[359601975,1746178238674,-193.68981105,0.00019178,2]
[359601977,1746178238684,-400.0,0.00019178,2]
[359601979,1746178238693,-400.0,0.00019178,2]
[359601981,1746178238702,-400.0,0.00019178,2]
[359601983,1746178238712,-400.0,0.00019178,2]
[359601985,1746178238722,-403.37699001,0.00019178,2]
[359601987,1746178238731,-400.0,0.00019178,2]
[359601989,1746178238741,-400.0,0.00019178,2]
[359601991,1746178238750,-169.44758879,0.00019178,2]
[359601993,1746178238759,-400.0,0.00019178,2]
[359601995,1746178238768,-400.0,0.00019178,2]
[359601997,1746178238777,-400.0,0.00019178,2]
[359601999,1746178238787,-407.06358314,0.00019178,2]
[359602001,1746178238796,-418.79,0.00019178,2]
[359602003,1746178238806,-400.0,0.00019178,2]
[359602005,1746178238815,-400.0,0.00019178,2]
[359602007,1746178238824,-400.0,0.00019178,2]
[359602009,1746178238833,-644.58,0.00019178,2]
[359602011,1746178238843,-400.0,0.00019178,2]
[359602013,1746178238852,-400.0,0.00019178,2]
[359602015,1746178238862,-400.0,0.00019178,2]
[359602017,1746178238871,-405.36479911,0.00019178,2]
[359602019,1746178238881,-400.0,0.00019178,2]
[359602021,1746178238890,-400.0,0.00019178,2]
[359602023,1746178238899,-400.0,0.00019178,2]
[359602025,1746178238909,-326.98165034,0.00019178,2]
[359602027,1746178238918,-400.0,0.00019178,2]
[359602029,1746178238928,-182.82909036,0.00019178,2]
[359602031,1746178238940,-217.17090964,0.00019178,2]
[359602033,1746178238950,-400.0,0.00019178,2]
[359602035,1746178238959,-400.0,0.00019178,2]
[359602037,1746178238968,-400.0,0.00019178,2]
[359602039,1746178238977,-41.74909036,0.00019178,2]
[359602045,1746178239030,-500.28090964,0.00019178,2]
[359602048,1746178239039,-746.07,0.00019178,2]
[359602050,1746178239049,-400.0,0.00019178,2]
[359602052,1746178239060,-400.0,0.00019178,2]
[359602054,1746178239069,-400.0,0.00019178,2]
[359602056,1746178239078,-400.0,0.00019178,2]
[359602058,1746178239090,-400.0,0.00019178,2]
[359602060,1746178239099,-400.0,0.00019178,2]
[359602062,1746178239109,-400.0,0.00019178,2]
[359602064,1746178239119,-400.0,0.00019178,2]
[359602066,1746178239128,-400.0,0.00019178,2]
[359602068,1746178239139,-400.0,0.00019178,2]
[359602070,1746178239149,-400.0,0.00019178,2]
[359602072,1746178239159,-405.02581479,0.00019178,2]
[359602074,1746178239169,-400.0,0.00019178,2]
[359602076,1746178239180,-400.0,0.00019178,2]
[359602078,1746178239189,-400.0,0.00019178,2]
[359602080,1746178239200,-400.0,0.00019178,2]
[359602082,1746178239209,-400.0,0.00019178,2]
[359602084,1746178239218,-400.0,0.00019178,2]
[359602086,1746178239228,-400.0,0.00019178,2]
[359602088,1746178239238,-400.0,0.00019178,2]
[359602090,1746178239248,-400.0,0.00019178,2]
[359602092,1746178239258,-400.0,0.00019178,2]
[359602094,1746178239268,-210.34052622,0.00019178,2]
[359602096,1746178239278,-465.41,0.00019178,2]
[359602098,1746178239287,-400.0,0.00019178,2]
[359602100,1746178239297,-503.66280252,0.00019178,2]
[359602102,1746178239307,-400.0,0.00019178,2]
[359602104,1746178239317,-223.278297,0.00019178,2]
[359602106,1746178239326,-400.0,0.00019178,2]
[359602108,1746178239336,-400.0,0.00019178,2]
[359602110,1746178239345,-401.68473511,0.00019178,2]
[359602112,1746178239355,-739.7,0.00019178,2]
[359602114,1746178239365,-401.50748803,0.00019178,2]
[359602116,1746178239375,-527.15343844,0.00019178,2]
[359602118,1746178239384,-400.0,0.00019178,2]
[359602120,1746178239394,-400.0,0.00019178,2]
[359602122,1746178239404,-400.0,0.00019178,2]
[359602124,1746178239414,-721.26,0.00019178,2]
[359602126,1746178239424,-400.0,0.00019178,2]
[359602128,1746178239433,-500.97934565,0.00019178,2]
[359602131,1746178239443,-400.0,0.00019178,2]
[359602133,1746178239454,-400.0,0.00019178,2]
[359602135,1746178239463,-1493.31,0.00019178,2]
[359602137,1746178239473,-400.0,0.00019178,2]
[359602139,1746178239483,-530.54,0.00019178,2]
[359602141,1746178239492,-404.83044322,0.00019178,2]
[359602143,1746178239501,-400.0,0.00019178,2]
[359602145,1746178239511,-400.0,0.00019178,2]
[359602147,1746178239520,-768.79,0.00019178,2]
[359602149,1746178239529,-400.0,0.00019178,2]
[359602151,1746178239539,-400.0,0.00019178,2]
[359602153,1746178239549,-400.0,0.00019178,2]
[359602155,1746178239559,-400.0,0.00019178,2]
[359602157,1746178239568,-400.0,0.00019178,2]
[359602159,1746178239578,-400.0,0.00019178,2]
[359602161,1746178239588,-400.0,0.00019178,2]
[359602163,1746178239598,-400.0,0.00019178,2]
[359602165,1746178239607,-400.0,0.00019178,2]
[359602167,1746178239616,-400.0,0.00019178,2]
[359602169,1746178239626,-400.0,0.00019178,2]
[359602171,1746178239635,-400.0,0.00019178,2]
[359602173,1746178239645,-710.45,0.00019178,2]
[359602175,1746178239655,-226.84209927,0.00019178,2]
[359602177,1746178239665,-400.0,0.00019178,2]
[359602179,1746178239674,-404.04469604,0.00019178,2]
[359602181,1746178239684,-400.0,0.00019178,2]
[359602183,1746178239694,-400.0,0.00019178,2]
[359602185,1746178239704,-400.0,0.00019178,2]
[359602187,1746178239714,-400.0,0.00019178,2]
[359602189,1746178239724,-400.0,0.00019178,2]
[359602191,1746178239734,-400.0,0.00019178,2]
[359602193,1746178239743,-972.89,0.00019178,2]
[359602195,1746178239753,-400.0,0.00019178,2]
[359602197,1746178239763,-400.0,0.00019178,2]
[359602199,1746178239772,-400.0,0.00019178,2]
[359602201,1746178239782,-400.0,0.00019178,2]
[359602204,1746178239792,-22.90861992,0.00019178,2]
[359602207,1746178239807,-377.09138008,0.00019178,2]
[359602209,1746178239818,-34.33986791,0.00019178,2]
[359602252,1746178240475,-365.66013209,0.00019178,2]
[359602254,1746178240485,-539.75,0.00019178,2]
[359602256,1746178240495,-400.0,0.00019178,2]
[359602258,1746178240505,-400.0,0.00019178,2]
[359602260,1746178240515,-400.0,0.00019178,2]
[359602262,1746178240526,-400.0,0.00019178,2]
[359602264,1746178240535,-404.34416072,0.00019178,2]
[359602266,1746178240546,-443.96,0.00019178,2]
[359602268,1746178240556,-400.0,0.00019178,2]
[359602270,1746178240565,-400.0,0.00019178,2]
[359602272,1746178240575,-400.0,0.00019178,2]
[359602274,1746178240586,-400.0,0.00019178,2]
[359602276,1746178240596,-400.0,0.00019178,2]
[359602278,1746178240606,-400.0,0.00019178,2]
[359602280,1746178240616,-400.0,0.00019178,2]
[359602282,1746178240626,-2104.14,0.00019178,2]
[359602284,1746178240635,-403.12183994,0.00019178,2]
[359602286,1746178240645,-220.31835082,0.00019178,2]
[359602288,1746178240656,-400.0,0.00019178,2]
[359602290,1746178240665,-795.1,0.00019178,2]
[359602292,1746178240675,-400.0,0.00019178,2]
[359602294,1746178240685,-810.23,0.00019178,2]
[359602296,1746178240694,-400.0,0.00019178,2]
[359602298,1746178240704,-832.3,0.00019178,2]
[359602301,1746178240713,-400.0,0.00019178,2]
[359602303,1746178240723,-400.0,0.00019178,2]
[359602305,1746178240733,-400.0,0.00019178,2]
[359602307,1746178240743,-400.0,0.00019178,2]
[359602309,1746178240752,-400.0,0.00019178,2]
[359602311,1746178240762,-400.0,0.00019178,2]
[359602313,1746178240771,-400.0,0.00019178,2]
[359602315,1746178240783,-400.0,0.00019178,2]
[359602317,1746178240792,-187.72882629,0.00019178,2]
[359602319,1746178240802,-400.0,0.00019178,2]
[359602321,1746178240812,-879.42,0.00019178,2]
[359602323,1746178240822,-400.0,0.00019178,2]
[359602325,1746178240831,-400.0,0.00019178,2]
[359602327,1746178240840,-400.0,0.00019178,2]
[359602329,1746178240852,-400.0,0.00019178,2]
[359602331,1746178240861,-400.0,0.00019178,2]
[359602333,1746178240872,-400.0,0.00019178,2]
[359602335,1746178240882,-400.0,0.00019178,2]
[359602337,1746178240891,-400.0,0.00019178,2]
[359602339,1746178240902,-400.0,0.00019178,2]
[359602341,1746178240912,-401.6436484,0.00019178,2]
[359602343,1746178240921,-400.0,0.00019178,2]
[359602345,1746178240931,-400.0,0.00019178,2]
[359602348,1746178240941,-400.0,0.00019178,2]
[359602350,1746178240953,-400.0,0.00019178,2]
[359602352,1746178240963,-400.0,0.00019178,2]
[359602354,1746178240973,-400.0,0.00019178,2]
[359602356,1746178240983,-400.0,0.00019178,2]
[359602358,1746178240992,-400.0,0.00019178,2]
[359602360,1746178241003,-400.0,0.00019178,2]
[359602362,1746178241017,-400.0,0.00019178,2]
[359602364,1746178241026,-723.39,0.00019178,2]
[359602366,1746178241036,-400.0,0.00019178,2]
[359602368,1746178241046,-1242.3,0.00019178,2]
[359602370,1746178241057,-400.0,0.00019178,2]
[359602372,1746178241066,-400.0,0.00019178,2]
[359602374,1746178241076,-400.0,0.00019178,2]
[359602377,1746178241086,-400.0,0.00019178,2]
[359602378,1746178241096,-400.0,0.00019178,2]
[359602381,1746178241107,-406.89402627,0.00019178,2]
[359602383,1746178241117,-400.0,0.00019178,2]
[359602385,1746178241127,-400.0,0.00019178,2]
[359602387,1746178241138,-400.0,0.00019178,2]
[359602389,1746178241148,-1169.31,0.00019178,2]
[359602391,1746178241158,-400.0,0.00019178,2]
[359602393,1746178241168,-400.0,0.00019178,2]
[359602395,1746178241178,-400.0,0.00019178,2]
[359602397,1746178241188,-400.0,0.00019178,2]
[359602399,1746178241198,-400.0,0.00019178,2]
[359602401,1746178241207,-465.90354696,0.00019178,2]
[359602403,1746178241217,-496.03348764,0.00019178,2]
[359602405,1746178241227,-512.57,0.00019178,2]
[359602407,1746178241238,-400.0,0.00019178,2]
[359602409,1746178241248,-400.0,0.00019178,2]
[359602411,1746178241257,-892.31,0.00019178,2]
[359602414,1746178241267,-400.0,0.00019178,2]
[359602416,1746178241277,-400.0,0.00019178,2]
[359602418,1746178241287,-347.18154563,0.00019178,2]
[359602420,1746178241297,-400.0,0.00019178,2]
[359602422,1746178241308,-400.0,0.00019178,2]
[359602424,1746178241318,-448.16532406,0.00019178,2]
[359602426,1746178241328,-432.24,0.00019178,2]
[359602428,1746178241338,-454.93266175,0.00019178,2]
[359602430,1746178241348,-400.0,0.00019178,2]
[359602432,1746178241358,-400.0,0.00019178,2]
[359602434,1746178241368,-400.0,0.00019178,2]
[359602436,1746178241378,-400.0,0.00019178,2]
[359602438,1746178241387,-400.0,0.00019178,2]
[359602440,1746178241397,-400.0,0.00019178,2]
[359602442,1746178241409,-523.59073379,0.00019178,2]
[359602444,1746178241419,-400.0,0.00019178,2]
[359602446,1746178241428,-1975.12,0.00019178,2]
[359602449,1746178241439,-489.55,0.00019178,2]
[359602451,1746178241449,-400.0,0.00019178,2]
[359602453,1746178241459,-400.0,0.00019178,2]
[359602455,1746178241468,-400.0,0.00019178,2]
[359602457,1746178241478,-400.0,0.00019178,2]
[359602459,1746178241488,-400.0,0.00019178,2]
[359602461,1746178241498,-207.91982072,0.00019178,2]
[359602463,1746178241508,-400.0,0.00019178,2]
[359602465,1746178241518,-400.0,0.00019178,2]
[359602467,1746178241528,-878.47,0.00019178,2]
[359602469,1746178241539,-404.28583021,0.00019178,2]
[359602472,1746178241550,-400.0,0.00019178,2]
[359602474,1746178241560,-1004.82,0.00019178,2]
[359602476,1746178241571,-400.0,0.00019178,2]
[359602478,1746178241581,-1026.6,0.00019178,2]
[359602480,1746178241592,-400.0,0.00019178,2]
[359602482,1746178241602,-739.65,0.00019178,2]
[359602484,1746178241613,-400.0,0.00019178,2]
[359602486,1746178241623,-400.0,0.00019178,2]
[359602488,1746178241633,-400.0,0.00019178,2]
[359602490,1746178241644,-1134.59,0.00019178,2]
[359602493,1746178241654,-614.62,0.00019178,2]
[359602495,1746178241664,-400.0,0.00019178,2]
[359602497,1746178241674,-400.0,0.00019178,2]
[359602499,1746178241684,-400.0,0.00019178,2]
[359602501,1746178241695,-400.0,0.00019178,2]
[359602503,1746178241704,-500.0,0.00019178,2]
[359602505,1746178241715,-400.0,0.00019178,2]
[359602507,1746178241725,-400.0,0.00019178,2]
[359602509,1746178241735,-400.0,0.00019178,2]
[359602511,1746178241746,-1393.55,0.00019178,2]
[359602513,1746178241756,-400.0,0.00019178,2]
[359602515,1746178241766,-287.13693183,0.00019178,2]
[359602518,1746178241776,-400.0,0.00019178,2]
[359602520,1746178241786,-400.0,0.00019178,2]
[359602522,1746178241797,-502.39820923,0.00019178,2]
[359602524,1746178241807,-400.0,0.00019178,2]
[359602526,1746178241817,-400.0,0.00019178,2]
[359602528,1746178241827,-522.35,0.00019178,2]
[359602530,1746178241837,-400.0,0.00019178,2]
[359602532,1746178241848,-400.0,0.00019178,2]
[359602534,1746178241858,-400.0,0.00019178,2]
[359602537,1746178241870,-400.0,0.00019178,2]
[359602539,1746178241880,-315.21591732,0.00019178,2]
[359602541,1746178241890,-400.0,0.00019178,2]
[359602543,1746178241901,-400.0,0.00019178,2]
[359602545,1746178241911,-400.0,0.00019178,2]
[359602547,1746178241921,-394.14139189,0.00019178,2]
[359602549,1746178241931,-400.0,0.00019178,2]
[359602551,1746178241941,-400.0,0.00019178,2]
[359602553,1746178241952,-400.0,0.00019178,2]
[359602555,1746178241962,-1146.83,0.00019178,2]
[359602557,1746178241972,-400.0,0.00019178,2]
[359602559,1746178241982,-400.0,0.00019178,2]
[359602561,1746178241993,-505.57,0.00019178,2]
[359602563,1746178242003,-722.3,0.00019178,2]
[359602566,1746178242017,-386.61251495,0.00019178,2]
[359602568,1746178242026,-2004.78,0.00019178,2]
[359602570,1746178242036,-400.0,0.00019178,2]
[359602572,1746178242046,-400.0,0.00019178,2]
[359602574,1746178242058,-486.71,0.00019178,2]
[359602576,1746178242068,-400.0,0.00019178,2]
[359602578,1746178242078,-400.0,0.00019178,2]
[359602580,1746178242090,-449.37,0.00019178,2]
[359602582,1746178242100,-400.0,0.00019178,2]
[359602584,1746178242110,-187.97,0.00019178,2]
[359602586,1746178242120,-400.0,0.00019178,2]
[359602589,1746178242130,-453.91,0.00019178,2]
[359602591,1746178242140,-400.0,0.00019178,2]
[359602593,1746178242151,-400.0,0.00019178,2]
[359602595,1746178242162,-404.01956014,0.00019178,2]
[359602597,1746178242172,-393.0486653,0.00019178,2]
[359602599,1746178242182,-400.0,0.00019178,2]
[359602601,1746178242192,-400.0,0.00019178,2]
[359602603,1746178242202,-400.0,0.00019178,2]
[359602605,1746178242212,-400.0,0.00019178,2]
[359602607,1746178242222,-400.0,0.00019178,2]
[359602609,1746178242232,-400.0,0.00019178,2]
[359602611,1746178242242,-754.4,0.00019178,2]
[359602613,1746178242252,-406.82,0.00019178,2]
[359602615,1746178242262,-400.0,0.00019178,2]
[359602618,1746178242272,-400.0,0.00019178,2]
[359602620,1746178242283,-400.0,0.00019178,2]
[359602622,1746178242293,-635.59,0.00019178,2]
[359602624,1746178242303,-209.5917684,0.00019178,2]
[359602626,1746178242314,-490.23,0.00019178,2]
[359602628,1746178242324,-602.55,0.00019178,2]
[359602630,1746178242335,-619.85,0.00019178,2]
[359602632,1746178242345,-400.0,0.00019178,2]
[359602634,1746178242356,-401.92891429,0.00019178,2]
[359602636,1746178242366,-442.61972974,0.00019178,2]
[359602638,1746178242376,-400.0,0.00019178,2]
[359602640,1746178242386,-400.0,0.00019178,2]
[359602643,1746178242396,-400.0,0.00019178,2]
[359602645,1746178242406,-400.0,0.00019178,2]
[359602647,1746178242416,-2161.27,0.00019178,2]
[359602649,1746178242427,-400.0,0.00019178,2]
[359602673,1746178242639,-400.0,0.00019178,2]
[359602676,1746178242654,-400.0,0.00019178,2]
[359602678,1746178242665,-400.0,0.00019178,2]
[359602680,1746178242675,-400.0,0.00019178,2]
[359602683,1746178242685,-400.0,0.00019178,2]
[359602686,1746178242694,-256.42297332,0.00019178,2]
[359602689,1746178242704,-500.0,0.00019178,2]
[359602691,1746178242714,-400.0,0.00019178,2]
[359602693,1746178242724,-400.0,0.00019178,2]
[359602695,1746178242733,-818.95,0.00019178,2]
[359602698,1746178242743,-400.0,0.00019178,2]
[359602701,1746178242753,-400.0,0.00019178,2]
[359602703,1746178242763,-400.0,0.00019178,2]
[359602705,1746178242774,-400.0,0.00019178,2]
[359602707,1746178242784,-400.0,0.00019178,2]
[359602709,1746178242794,-400.0,0.00019178,2]
[359602712,1746178242803,-400.0,0.00019178,2]
[359602714,1746178242814,-400.0,0.00019178,2]
[359602716,1746178242824,-1174.22,0.00019178,2]